Workbook

Sheet Instructions
D9: Instructions générales
D10: Le présent modèle est un exemple représentant les niveaux de détail attendus dans les rapports financiers soumis à Gavi. Il devrait être utilisé en conjonction avec les Exigences de Gavi en matière de gestion financière et d'audit, que vous trouverez ici. En 2016, l'utilisation de ce modèle est encore facultative.
D11: Gavi va continuer à améliorer les procédures de reporting des pays. Ainsi, pendant que Gavi déploie des efforts concertés pour éviter d'apporter des modifications qui interrompent le déroulement du travail, les modifications au présent modèle seront progressivement introduites en s'appuyant sur les améliorations des procédures et les modifications de politique. En cas de mécanismes financiers communs, veuillez consulter les Exigences de Gavi en matière de gestion financière et d'audit mentionnées ci-dessus. Les exigences de Gavi sont prises en compte lors de la conception de chaque mécanisme financier commun, qui est unique par nature. Il est donc recommandé que le pays discute avec le Secrétariat de Gavi les exigences de reporting financier, y compris l'applicabilité et l'utilisation du présent modèle. Pour que cet outil fonctionne correctement, veuillez activer les macros. Le modèle ne contient pas de cellules protégées ni de formules et les utilisateurs sont invités à le modifier, à condition de respecter les formats de reporting de base. Pour commencer, veuillez introduire les noms du pays et de la subvention, l'exercice financier, la devise locale, la fréquence de reporting et la période de reporting CI-DESSOUS:
D12: Noms du pays et de la subvention | E12: paysexemple - RSS 2
D13: Année de de la subventioni | E13: Jan- déc 2015
D14: Exercice fiscal national | E14: Juillet 2014 - juin 2015
D15: Devise locale | E15: EXA
D16: Fréquence de reporting | E16: Annuelle
D17: Période de reporting considérée | E17: Jan- déc 2015
B19: Aller à la Section...: | D19: Le modèle a la structure suivante:
B20: Relevé des revenus et dépenses | D20: Cet onglet est essentiellement automatisé à partir de l'onglet "Reporting budgétaire détaillé". Il résume les revenus et dépenses par catégorie et année. Tous les montants sont présentés en USD. Les sections à compléter manuellement sont: 1. Les revenus sont enregistrés pour chaque année de la subvention en USD entre les activités suivantes: a) Décaissements budgétisés reçus de Gavi b) Revenu des intérêts budgétisé c) Autres revenus budgétisés d) Décaissements réellement reçus de Gavi e) Revenu des intérêts réel f) Autres revenus réels 2. Commentaires sur les écarts NOTE IMPORTANTE: Catégories de coûts: Gavi préfère que les pays utilisent ses catégories de dépenses. Même s'ils ne sont pas en mesure d'extraire ces données directement de leurs systèmes comptables, les pays devraient essayer d'estimer ou de fournir un relevé de leurs propres classifications. Si cela s'avère difficile, ils peuvent utiliser leurs propres catégories de coûts, à condition que celles-ci soient alignées en termes généraux avec les catégories de Gavi.
B21: Reporting budgétaire détaillé | D21: Cet onglet enregistre les dépenses budgétaires détaillées correspondant à la subvention. Les sections à compléter sont: 1. Les dépenses - on enregistre les dépenses tant budgétisées que réelles au niveau de chaque ligne d'activité qui correspond directement au budget de RSS de Gavi approuvé. Il faut inclure les détails suivants: a) L'objectif de la dépense, catégorie de frais de Gavi, nom/titre de l'activité, description de l'activité et l'unité de l'intrant. Ces intrants proviennent directement du budget de RSS approuvé. b) Les détails des frais budgétisés selon le budget approuvé en USD. c) Les dépenses réelles encourues sont inscrites trimestriellement, semestriellement ou annuellement, selon les exigences de reporting du pays. Les dépenses doivent être en USD. Les pays peuvent inscrire les dépenses en devise locale, à condition de les traduire également en USD. 2. Tous autres commentaires dignes d'intérêt pour chaque ligne d'activité, par année.
D22: REMARQUE IMPORTANTE Catégories de coûts Si le pays ne tient pas ses registres comptables avec les mêmes catégories que Gavi, celle-ci préfère que le pays effectue un relevé des catégories de coûts locales en format Gavi. Toutefois, si tel n'est pas possible, le pays peut utiliser ses propres catégories de coûts et devrait discuter cette approche avec la personne de contact chez Gavi. Informations détaillées sur les coûts au budget Si le pays n'est pas en mesure de l'extraire les coûts des activités et de les comparer avec le budget de Gavi, il est possible d'utiliser une estimation ou un relevé provenant de la classification comptable locale. Si tel n'est pas possible, le pays peut passer directement au relevé des recettes et des dépenses et fournir uniquement des informations résumées.
B23: Registre des actifs | D23: Cet onglet contient un exemple montrant les niveaux de détails attendus. Au niveau du pays, le même niveau de détail doit se retrouver dans le registre des actifs acquis grâce à des financements fourni par Gavi.
B24: Catégories de subventions de Gavi | D24: Contient des informations sur les catégories de subventions de Gavi, telles qu'elles figurent dans le dossier de demande.

Sheet Etat des revenus et dépenses
A1: =CONCATENATE("Income and Expenditure Statement - ",Instructions!E12) -> Income and Expenditure Statement - paysexemple - RSS 2
B3: ='Reporting budgétaire détaillé'!I10 ->  | F3: ='Reporting budgétaire détaillé'!L10 ->  | J3: ='Reporting budgétaire détaillé'!O10 ->  | N3: ='Reporting budgétaire détaillé'!R10 ->  | R3: =Instructions!E17 -> Jan- déc 2015 | V3: Commentaires sur les écarts
B4: Annual Budget | C4: Actual | D4: Variance US$ | E4: Variance % | F4: Budget annuel | G4: Réalisés | H4: Ecart en USD | I4: Ecart % | J4: Annual Budget | K4: Actual | L4: Variance US$ | M4: Variance % | N4: Budget annuel | O4: Réalisés | P4: Ecart en USD | Q4: Ecart % | R4: Budget annuel | S4: Réalisés | T4: Ecart en USD | U4: Ecart %
A5: Revenus
A6: Reçu de Gavi | D6: =C6-B6 -> 0 | E6: =IFERROR(D6/B6,0) -> 0 | F6: 4500000 | G6: 2000000 | H6: -2500000 | I6: =IFERROR(H6/F6,0) -> -0.5555555556 | L6: =K6-J6 -> 0 | M6: =IFERROR(L6/J6,0) -> 0 | N6: 4500000 | O6: 2500000 | P6: -2000000 | Q6: =IFERROR(P6/N6,0) -> -0.4444444444 | R6: 4500000 | S6: 4500000 | T6: 0 | U6: =IFERROR(T6/R6,0) -> 0
A7: Revenus provenant des intérêts | D7: =C7-B7 -> 0 | E7: =IFERROR(D7/B7,1) -> 1 | F7: 0 | G7: 30000 | H7: 30000 | I7: =IFERROR(H7/F7,1) -> 1 | L7: =K7-J7 -> 0 | M7: =IFERROR(L7/J7,1) -> 1 | N7: 0 | O7: 33000 | P7: 33000 | Q7: =IFERROR(P7/N7,1) -> 1 | R7: 0 | S7: 63000 | T7: 63000 | U7: =IFERROR(T7/R7,1) -> 1 | V7: Intérêts sur les fonds de Gavi, non budgétisés
A8: Autres revenus | D8: 0 | E8: =IFERROR(D8/B8,0) -> 0 | F8: 0 | G8: 0 | H8: 0 | I8: =IFERROR(H8/F8,0) -> 0 | L8: 0 | M8: =IFERROR(L8/J8,0) -> 0 | N8: 0 | O8: 0 | P8: 0 | Q8: =IFERROR(P8/N8,0) -> 0 | R8: 0 | S8: 0 | T8: 0 | U8: =IFERROR(T8/R8,0) -> 0
A9: Revenus totaux | B9: =SUM(B6:B8) -> 0 | C9: =SUM(C6:C8) -> 0 | D9: 0 | E9: 0 | F9: =SUM(F6:F8) -> 4500000 | G9: =SUM(G6:G8) -> 2030000 | H9: -2470000 | I9: -0.5488888889 | J9: =SUM(J6:J8) -> 0 | K9: =SUM(K6:K8) -> 0 | L9: 0 | M9: 0 | N9: =SUM(N6:N8) -> 4500000 | O9: =SUM(O6:O8) -> 2533000 | P9: -1967000 | Q9: -0.4371111111 | R9: =SUM(R6:R8) -> 4500000 | S9: =SUM(S6:S8) -> 4563000 | T9: 63000 | U9: 0.014
A11: Dépenses
A12: 1 Prestation de services | B12: =SUMIFS('Reporting budgétaire détaillé'!H:H,'Reporting budgétaire détaillé'!B:B,A12) -> 1685790 | C12: =SUMIFS('Reporting budgétaire détaillé'!K:K,'Reporting budgétaire détaillé'!B:B,A12) -> 0 | D12: =B12-C12 -> 1685790 | E12: =IFERROR(D12/B12,0) -> 1 | F12: =SUMIFS('Reporting budgétaire détaillé'!H:H,'Reporting budgétaire détaillé'!B:B,A12) -> 1685790 | G12: =SUMIFS('Reporting budgétaire détaillé'!N:N,'Reporting budgétaire détaillé'!B:B,A12) -> 536643 | H12: =F12-G12 -> 1149147 | I12: =IFERROR(H12/F12,0) -> 0.6816667556 | J12: =SUMIFS('Reporting budgétaire détaillé'!H:H,'Reporting budgétaire détaillé'!B:B,A12) -> 1685790 | K12: =SUMIFS('Reporting budgétaire détaillé'!Q:Q,'Reporting budgétaire détaillé'!B:B,A12) -> 0 | L12: =J12-K12 -> 1685790 | M12: =IFERROR(L12/J12,0) -> 1 | N12: =SUMIFS('Reporting budgétaire détaillé'!H:H,'Reporting budgétaire détaillé'!B:B,A12) -> 1685790 | O12: =SUMIFS('Reporting budgétaire détaillé'!T:T,'Reporting budgétaire détaillé'!B:B,A12) -> 1194500 | P12: =N12-O12 -> 491290 | Q12: =IFERROR(P12/N12,0) -> 0.2914301307 | R12: =SUMIFS('Reporting budgétaire détaillé'!H:H,'Reporting budgétaire détaillé'!B:B,A12) -> 1685790 | S12: =C12+G12+K12+O12 -> 1731143 | T12: =R12-S12 -> -45353 | U12: =IFERROR(T12/R12,0) -> -0.02690311367 | V12: 1 motocyclette extra. achetée pour transporter les porte vaccins dans le district difficile à atteindre A
A13: 2 Personnel et ressources humaines | B13: =SUMIFS('Reporting budgétaire détaillé'!H:H,'Reporting budgétaire détaillé'!B:B,A13) -> 390440 | C13: =SUMIFS('Reporting budgétaire détaillé'!K:K,'Reporting budgétaire détaillé'!B:B,A13) -> 0 | D13: 390440 | E13: 1 | F13: =SUMIFS('Reporting budgétaire détaillé'!H:H,'Reporting budgétaire détaillé'!B:B,A13) -> 390440 | G13: =SUMIFS('Reporting budgétaire détaillé'!N:N,'Reporting budgétaire détaillé'!B:B,A13) -> 130342 | H13: 260098 | I13: 0.6661663764 | J13: =SUMIFS('Reporting budgétaire détaillé'!H:H,'Reporting budgétaire détaillé'!B:B,A13) -> 390440 | K13: =SUMIFS('Reporting budgétaire détaillé'!Q:Q,'Reporting budgétaire détaillé'!B:B,A13) -> 0 | L13: 390440 | M13: 1 | N13: =SUMIFS('Reporting budgétaire détaillé'!H:H,'Reporting budgétaire détaillé'!B:B,A13) -> 390440 | O13: =SUMIFS('Reporting budgétaire détaillé'!T:T,'Reporting budgétaire détaillé'!B:B,A13) -> 259912 | P13: 130528 | Q13: 0.3343100092 | R13: =SUMIFS('Reporting budgétaire détaillé'!H:H,'Reporting budgétaire détaillé'!B:B,A13) -> 390440 | S13: =C13+G13+K13+O13 -> 390254 | T13: =R13-S13 -> 186 | U13: 0.0004763856162
A14: 3 Achats et gestion de la chaîne d'approvisionnement | B14: =SUMIFS('Reporting budgétaire détaillé'!H:H,'Reporting budgétaire détaillé'!B:B,A14) -> 979880 | C14: =SUMIFS('Reporting budgétaire détaillé'!K:K,'Reporting budgétaire détaillé'!B:B,A14) -> 0 | D14: 979880 | E14: 1 | F14: =SUMIFS('Reporting budgétaire détaillé'!H:H,'Reporting budgétaire détaillé'!B:B,A14) -> 979880 | G14: =SUMIFS('Reporting budgétaire détaillé'!N:N,'Reporting budgétaire détaillé'!B:B,A14) -> 306828 | H14: 673052 | I14: 0.6868718619 | J14: =SUMIFS('Reporting budgétaire détaillé'!H:H,'Reporting budgétaire détaillé'!B:B,A14) -> 979880 | K14: =SUMIFS('Reporting budgétaire détaillé'!Q:Q,'Reporting budgétaire détaillé'!B:B,A14) -> 0 | L14: 979880 | M14: 1 | N14: =SUMIFS('Reporting budgétaire détaillé'!H:H,'Reporting budgétaire détaillé'!B:B,A14) -> 979880 | O14: =SUMIFS('Reporting budgétaire détaillé'!T:T,'Reporting budgétaire détaillé'!B:B,A14) -> 685098 | P14: 294782 | Q14: 0.3008347961 | R14: =SUMIFS('Reporting budgétaire détaillé'!H:H,'Reporting budgétaire détaillé'!B:B,A14) -> 979880 | S14: 991926 | T14: -12046 | U14: -0.01229334204 | V14: Retard dans l'approvisionnement de la chaîne du froid A acheter en 2016
A15: 4 Systèmes d'information sanitaire | B15: =SUMIFS('Reporting budgétaire détaillé'!H:H,'Reporting budgétaire détaillé'!B:B,A15) -> 697526 | C15: =SUMIFS('Reporting budgétaire détaillé'!K:K,'Reporting budgétaire détaillé'!B:B,A15) -> 0 | D15: 697526 | E15: 1 | F15: =SUMIFS('Reporting budgétaire détaillé'!H:H,'Reporting budgétaire détaillé'!B:B,A15) -> 697526 | G15: =SUMIFS('Reporting budgétaire détaillé'!N:N,'Reporting budgétaire détaillé'!B:B,A15) -> 224334 | H15: 473192 | I15: 0.678386182 | J15: =SUMIFS('Reporting budgétaire détaillé'!H:H,'Reporting budgétaire détaillé'!B:B,A15) -> 697526 | K15: =SUMIFS('Reporting budgétaire détaillé'!Q:Q,'Reporting budgétaire détaillé'!B:B,A15) -> 0 | L15: 697526 | M15: 1 | N15: =SUMIFS('Reporting budgétaire détaillé'!H:H,'Reporting budgétaire détaillé'!B:B,A15) -> 697526 | O15: =SUMIFS('Reporting budgétaire détaillé'!T:T,'Reporting budgétaire détaillé'!B:B,A15) -> 484917 | P15: 212609 | Q15: 0.3048044087 | R15: =SUMIFS('Reporting budgétaire détaillé'!H:H,'Reporting budgétaire détaillé'!B:B,A15) -> 697526 | S15: 709251 | T15: -11725 | U15: -0.01680940925 | V15: Une réunion additionnelle tenue dans la capitale pour coordonner 3 formations au niveau opérationnel pour du personnel des centres de soins sur les méthodes de surveillance
A16: 5 Acteurs communautaires et autres acteurs locaux | B16: =SUMIFS('Reporting budgétaire détaillé'!H:H,'Reporting budgétaire détaillé'!B:B,A16) -> 390220 | C16: =SUMIFS('Reporting budgétaire détaillé'!K:K,'Reporting budgétaire détaillé'!B:B,A16) -> 0 | D16: 390220 | E16: 1 | F16: =SUMIFS('Reporting budgétaire détaillé'!H:H,'Reporting budgétaire détaillé'!B:B,A16) -> 390220 | G16: =SUMIFS('Reporting budgétaire détaillé'!N:N,'Reporting budgétaire détaillé'!B:B,A16) -> 124498 | H16: 265722 | I16: 0.6809543335 | J16: =SUMIFS('Reporting budgétaire détaillé'!H:H,'Reporting budgétaire détaillé'!B:B,A16) -> 390220 | K16: =SUMIFS('Reporting budgétaire détaillé'!Q:Q,'Reporting budgétaire détaillé'!B:B,A16) -> 0 | L16: 390220 | M16: 1 | N16: =SUMIFS('Reporting budgétaire détaillé'!H:H,'Reporting budgétaire détaillé'!B:B,A16) -> 390220 | O16: =SUMIFS('Reporting budgétaire détaillé'!T:T,'Reporting budgétaire détaillé'!B:B,A16) -> 248756 | P16: 141464 | Q16: 0.3625237046 | R16: =SUMIFS('Reporting budgétaire détaillé'!H:H,'Reporting budgétaire détaillé'!B:B,A16) -> 390220 | S16: 373254 | T16: 16966 | U16: 0.04347803803 | V16: L'évaluation externe de l'efficacité de la stratégie de communication existante non encore menée dans le district F.
A17: 6 Environnements juridiques, politiques et régulateurs | B17: =SUMIFS('Reporting budgétaire détaillé'!H:H,'Reporting budgétaire détaillé'!B:B,A17) -> 20000 | C17: =SUMIFS('Reporting budgétaire détaillé'!K:K,'Reporting budgétaire détaillé'!B:B,A17) -> 0 | D17: 20000 | E17: 1 | F17: =SUMIFS('Reporting budgétaire détaillé'!H:H,'Reporting budgétaire détaillé'!B:B,A17) -> 20000 | G17: =SUMIFS('Reporting budgétaire détaillé'!N:N,'Reporting budgétaire détaillé'!B:B,A17) -> 7467 | H17: 12533 | I17: 0.62665 | J17: =SUMIFS('Reporting budgétaire détaillé'!H:H,'Reporting budgétaire détaillé'!B:B,A17) -> 20000 | K17: =SUMIFS('Reporting budgétaire détaillé'!Q:Q,'Reporting budgétaire détaillé'!B:B,A17) -> 0 | L17: 20000 | M17: 1 | N17: =SUMIFS('Reporting budgétaire détaillé'!H:H,'Reporting budgétaire détaillé'!B:B,A17) -> 20000 | O17: =SUMIFS('Reporting budgétaire détaillé'!T:T,'Reporting budgétaire détaillé'!B:B,A17) -> 12133 | P17: 7867 | Q17: 0.39335 | R17: =SUMIFS('Reporting budgétaire détaillé'!H:H,'Reporting budgétaire détaillé'!B:B,A17) -> 20000 | S17: 19600 | T17: 400 | U17: 0.02
A18: 7 Financement de la santé | B18: =SUMIFS('Reporting budgétaire détaillé'!H:H,'Reporting budgétaire détaillé'!B:B,A18) -> 20000 | C18: =SUMIFS('Reporting budgétaire détaillé'!K:K,'Reporting budgétaire détaillé'!B:B,A18) -> 0 | D18: 20000 | E18: 1 | F18: =SUMIFS('Reporting budgétaire détaillé'!H:H,'Reporting budgétaire détaillé'!B:B,A18) -> 20000 | G18: =SUMIFS('Reporting budgétaire détaillé'!N:N,'Reporting budgétaire détaillé'!B:B,A18) -> 6267 | H18: 13733 | I18: 0.68665 | J18: =SUMIFS('Reporting budgétaire détaillé'!H:H,'Reporting budgétaire détaillé'!B:B,A18) -> 20000 | K18: =SUMIFS('Reporting budgétaire détaillé'!Q:Q,'Reporting budgétaire détaillé'!B:B,A18) -> 0 | L18: 20000 | M18: 1 | N18: =SUMIFS('Reporting budgétaire détaillé'!H:H,'Reporting budgétaire détaillé'!B:B,A18) -> 20000 | O18: =SUMIFS('Reporting budgétaire détaillé'!T:T,'Reporting budgétaire détaillé'!B:B,A18) -> 14133 | P18: 5867 | Q18: 0.29335 | R18: =SUMIFS('Reporting budgétaire détaillé'!H:H,'Reporting budgétaire détaillé'!B:B,A18) -> 20000 | S18: 20400 | T18: -400 | U18: -0.02
A19: 8 Gestion des programmes | B19: =SUMIFS('Reporting budgétaire détaillé'!H:H,'Reporting budgétaire détaillé'!B:B,A19) -> 100000 | C19: =SUMIFS('Reporting budgétaire détaillé'!K:K,'Reporting budgétaire détaillé'!B:B,A19) -> 0 | D19: 100000 | E19: 1 | F19: =SUMIFS('Reporting budgétaire détaillé'!H:H,'Reporting budgétaire détaillé'!B:B,A19) -> 100000 | G19: =SUMIFS('Reporting budgétaire détaillé'!N:N,'Reporting budgétaire détaillé'!B:B,A19) -> 36333 | H19: 63667 | I19: 0.63667 | J19: =SUMIFS('Reporting budgétaire détaillé'!H:H,'Reporting budgétaire détaillé'!B:B,A19) -> 100000 | K19: =SUMIFS('Reporting budgétaire détaillé'!Q:Q,'Reporting budgétaire détaillé'!B:B,A19) -> 0 | L19: 100000 | M19: 1 | N19: =SUMIFS('Reporting budgétaire détaillé'!H:H,'Reporting budgétaire détaillé'!B:B,A19) -> 100000 | O19: =SUMIFS('Reporting budgétaire détaillé'!T:T,'Reporting budgétaire détaillé'!B:B,A19) -> 70667 | P19: 29333 | Q19: 0.29333 | R19: =SUMIFS('Reporting budgétaire détaillé'!H:H,'Reporting budgétaire détaillé'!B:B,A19) -> 100000 | S19: 107000 | T19: -7000 | U19: -0.07 | V19: 2 ressources temporaires de plus nécessaires pour effectuer des visites de rattrapage trimestrielles dans les communautés à haut risque du district B.
A20: 9 Autres | B20: =SUMIFS('Reporting budgétaire détaillé'!H:H,'Reporting budgétaire détaillé'!B:B,A20) -> 15600 | C20: =SUMIFS('Reporting budgétaire détaillé'!K:K,'Reporting budgétaire détaillé'!B:B,A20) -> 0 | D20: =B20-C20 -> 15600 | E20: =IFERROR(D20/B20,0) -> 1 | F20: =SUMIFS('Reporting budgétaire détaillé'!H:H,'Reporting budgétaire détaillé'!B:B,A20) -> 15600 | G20: =SUMIFS('Reporting budgétaire détaillé'!N:N,'Reporting budgétaire détaillé'!B:B,A20) -> 5144 | H20: 10456 | I20: 0.6702564103 | J20: =SUMIFS('Reporting budgétaire détaillé'!H:H,'Reporting budgétaire détaillé'!B:B,A20) -> 15600 | K20: =SUMIFS('Reporting budgétaire détaillé'!Q:Q,'Reporting budgétaire détaillé'!B:B,A20) -> 0 | L20: 15600 | M20: 1 | N20: =SUMIFS('Reporting budgétaire détaillé'!H:H,'Reporting budgétaire détaillé'!B:B,A20) -> 15600 | O20: =SUMIFS('Reporting budgétaire détaillé'!T:T,'Reporting budgétaire détaillé'!B:B,A20) -> 12724 | P20: 2876 | Q20: 0.1843589744 | R20: =SUMIFS('Reporting budgétaire détaillé'!H:H,'Reporting budgétaire détaillé'!B:B,A20) -> 15600 | S20: 17868 | T20: -2268 | U20: -0.1453846154 | V20: L'achat de combustible est une activité continue et le prochain achat est prévu en 2016.
A21: 10 Frais de soutien au programme | B21: =SUMIFS('Reporting budgétaire détaillé'!H:H,'Reporting budgétaire détaillé'!B:B,A21) -> 0 | C21: =SUMIFS('Reporting budgétaire détaillé'!K:K,'Reporting budgétaire détaillé'!B:B,A21) -> 0 | D21: 0 | E21: 0 | F21: =SUMIFS('Reporting budgétaire détaillé'!H:H,'Reporting budgétaire détaillé'!B:B,A21) -> 0 | G21: =SUMIFS('Reporting budgétaire détaillé'!N:N,'Reporting budgétaire détaillé'!B:B,A21) -> 0 | H21: 0 | I21: 0 | J21: =SUMIFS('Reporting budgétaire détaillé'!H:H,'Reporting budgétaire détaillé'!B:B,A21) -> 0 | K21: =SUMIFS('Reporting budgétaire détaillé'!Q:Q,'Reporting budgétaire détaillé'!B:B,A21) -> 0 | L21: 0 | M21: 0 | N21: =SUMIFS('Reporting budgétaire détaillé'!H:H,'Reporting budgétaire détaillé'!B:B,A21) -> 0 | O21: =SUMIFS('Reporting budgétaire détaillé'!T:T,'Reporting budgétaire détaillé'!B:B,A21) -> 0 | P21: 0 | Q21: 0 | R21: =SUMIFS('Reporting budgétaire détaillé'!H:H,'Reporting budgétaire détaillé'!B:B,A21) -> 0 | S21: 0 | T21: 0 | U21: 0
A22: Dépenses totales | B22: =SUM(B12:B21) -> 4299456 | C22: =SUM(C12:C21) -> 0 | D22: =SUM(D18:D21) -> 135600 | E22: 0.03153887376 | F22: =SUM(F12:F21) -> 4299456 | G22: =SUM(G12:G21) -> 1377856 | H22: =SUM(H18:H21) -> 87856 | I22: 0.02043421307 | J22: =SUM(J12:J21) -> 4299456 | K22: =SUM(K12:K21) -> 0 | L22: =SUM(L18:L21) -> 135600 | M22: 0.03153887376 | N22: =SUM(N12:N21) -> 4299456 | O22: =SUM(O12:O21) -> 2982840 | P22: =SUM(P18:P21) -> 38076 | Q22: 0.008856004108 | R22: =SUM(R12:R21) -> 4299456 | S22: =SUM(S12:S21) -> 4360696 | T22: =SUM(T18:T21) -> -9668 | U22: -0.002248656574
A24: Surplus/(Déficit) de la période | B24: =B9-B22 -> -4299456 | C24: =C9-C22 -> 0 | D24: =D9-D22 -> -135600 | E24: 0.03153887376 | F24: =F9-F22 -> 200544 | G24: =G9-G22 -> 652144 | H24: =H9-H22 -> -2557856 | I24: =IFERROR(H24/F24,0) -> -12.75458752 | J24: =J9-J22 -> -4299456 | K24: =K9-K22 -> 0 | L24: =L9-L22 -> -135600 | M24: =IFERROR(L24/J24,0) -> 0.03153887376 | N24: =N9-N22 -> 200544 | O24: =O9-O22 -> -449840 | P24: =P9-P22 -> -2005076 | Q24: =IFERROR(P24/N24,0) -> -9.998184937 | R24: =R9-R22 -> 200544 | S24: =S9-S22 -> 202304 | T24: =T9-T22 -> 72668 | U24: =IFERROR(T24/R24,0) -> 0.362354396
A26: * Tous les montants en USD.
A28: Solde de caisse
A30: Solde de caisse reporté | G30: 0 | O30: =G33 -> 452144 | S30: 0
A31: Surplus/(Déficit) de la période | C31: =C24 -> 0 | G31: =G24 -> 652144 | K31: =K24 -> 0 | O31: =O24 -> -449840 | S31: =S24 -> 202304
A32: Mouvement des avances, le cas échéant | G32: -200000 | O32: 150000 | S32: =G32+O32 -> -50000
A33: Solde de caisse à reporter | C33: =SUM(C30:C32) -> 0 | G33: =SUM(G30:G32) -> 452144 | K33: =SUM(K30:K32) -> 0 | O33: =SUM(O30:O32) -> 152304 | S33: =SUM(S30:S32) -> 152304
A34: Représenté par:
A35: Liquidités en caisse et à la banque | G35: 252144 | O35: 102304 | S35: 102304
A36: Avances non liquidées, le cas échéant | G36: 200000 | O36: 50000 | S36: 50000
C37: =C35+C36 -> 0 | G37: =G35+G36 -> 452144 | K37: =K35+K36 -> 0 | O37: =O35+O36 -> 152304 | S37: =S35+S36 -> 152304
A39: Notes:
A41: Avances: Gavi encourage les pays à ne reporter les fonds avancés à des tiers (ou à divers niveaux au sein du système gouvernemental) qu'au moment où ils sont totalement dépensés. Les avances ne doivent pas être simplement assimilées à des dépenses dès que les fonds sont versés. Le solde des fonds non encore dépensés doit comprendre tant les soldes caisse/banque que les avances non encore justifiées/dépensées. Une distinction entre les types de solde doit être faite.
A42: Extraits bancaires et opérations de rapprochement bancaire Le pays doit fournir les extraits bancaires permettant de justifier les soldes bancaires enregistrés, ainsi qu'un etat de rapprochement bancaire si le solde du rapport Gavi et l'extrait bancaire ne correspondent pas.
A43: Justificatif des avances: Il faut fournir une liste et un relevé de situation des avances, au moins une fois par an, afin de justifier le montant des avances dans le rapport financier.
A44: Budget annuel Le budget annuel est identifié pour toutes les fréquences de reporting. Gavi encourage les pays à adapter le budget annuel aux périodes de reporting pertinentes, si tous deux sont capables de le faire et le souhaitent.
A50: =Instructions!E16 -> Annuelle

Sheet Reporting budgétaire détaillé
A1: =CONCATENATE("Detailed Budget Reporting - ",Instructions!E12) -> Detailed Budget Reporting - paysexemple - RSS 2
A3: Local Currency | B3: =Instructions!E15 -> EXA
A4: Reporting Frequency | B4: =Instructions!E16 -> Annuelle
A5: Reporting Period | B5: =Instructions!E17 -> Jan- déc 2015
A7: Dépenses
A9: Selon budget approuvé de la subvention RSS | I9: Dépenses | W9: =B5 -> Jan- déc 2015
I10: =IFERROR(IF($B$4="Trimestrielle","T1",""),"") ->  | L10: =IF($B$4="Trimestrielle","T2",IF($B$4="Semestrielle","Semestre 1","")) ->  | O10: =IFERROR(IF($B$4="Trimestrielle","T3",""),"") ->  | R10: =IF($B$4="Trimestrielle","T4",IF($B$4="Semestrielle","Semestre 2","")) ->  | U10: Total
A11: Objectif de la proposition du RSS (selon budget approuvé) | B11: Catégorie | C11: Activité | D11: Description de l'activité | E11: Unité d'intrant | F11: Coût unitaire de l'intrant | G11: Quantité | H11: Budget en USD | I11: Nbre unités | J11: =CONCATENATE("Dépenses ",$B$3) -> Dépenses EXA | K11: Dépenses en USD | L11: Nbre unités | M11: =CONCATENATE("Dépenses ",$B$3) -> Dépenses EXA | N11: Dépenses en USD | O11: Nbre unités | P11: =CONCATENATE("Dépenses ",$B$3) -> Dépenses EXA | Q11: Dépenses en USD | R11: Nbre unités | S11: =CONCATENATE("Dépenses ",$B$3) -> Dépenses EXA | T11: Dépenses en USD | U11: =CONCATENATE("Total ",$B$3) -> Total EXA | V11: Total USD | W11: Observations
A13: 1. Obectif1 : Accroître la couverture vaccinale dans les communautés à haut risque | B13: 1 Prestation de services | C13: 1.3 Améliorer la qualité des soins | D13: Mener des visites de rattrapage trimestrielles | E13: Visite de terrain | F13: 10000 | G13: 24 | H13: 240000 | L13: 8 | M13: 314007000 | N13: 78600 | R13: 16 | S13: 664718400 | T13: 165600 | U13: =J13+M13+P13+S13 -> 978725400 | V13: =K13+N13+Q13+T13 -> 244200
A14: 1. Obectif1 : Accroître la couverture vaccinale dans les communautés à haut risque | B14: 1 Prestation de services | C14: 1.3 Améliorer la qualité des soins | D14: Soutenir les centres de village pour obtenir des données sur le nombre de femmes et d'enfants des communautés à haut risque non vaccinées et rapporter mensuellement au centre de santé | E14: Visite de terrain | F14: 109920 | G14: 4 | H14: 439680 | L14: 1 | M14: 530707785 | N14: 132843 | R14: 3 | S14: 1267247898 | T14: 315707 | U14: =J14+M14+P14+S14 -> 1797955683 | V14: 448550
A15: 1. Obectif1 : Accroître la couverture vaccinale dans les communautés à haut risque | B15: 1 Prestation de services | C15: 1.4 Transport: | D15: Achat de motocyclettes et casques pour le personnel du centre de santé qui assiste les communautés à haut risque, afin de permettre des visites de rattrapage | E15: Unité | F15: 2200 | G15: 50 | H15: 110000 | L15: 17 | M15: 143648215 | N15: 35957 | R15: 33 | S15: 308006262 | T15: 76733 | U15: 451654477 | V15: 112690
A16: 1. Objectif 1 : Accroître la couverture vaccinale dans les communautés à haut risque | B16: 1 Prestation de services | C16: 1.2 Organisation du service et gestion des installations | D16: Préparer et distribuer des kits de vaccination aux communautés à haut risque | E16: Unité | F16: 30 | G16: 1832 | H16: 54960 | L16: 611 | M16: 70991150 | N16: 17770 | R16: 1221 | S16: 155935872 | T16: 38848 | U16: 226927022 | V16: 56618
A17: 1. Objectif 1 : Accroître la couverture vaccinale dans les communautés à haut risque | B17: 1 Prestation de services | C17: 1.2 Organisation du service et gestion des installations | D17: Organiser des réunions trimestrielles entre le personnel du centre de village et du centre de santé | E17: Rencontre | F17: 22000 | G17: 4 | H17: 88000 | L17: 1 | M17: 113669735 | N17: 28453 | R17: 3 | S17: 249618618 | T17: 62187 | U17: 363288353 | V17: 90640
A18: 1. Objectif 1 : Accroître la couverture vaccinale dans les communautés à haut risque | B18: 1 Prestation de services | C18: 1.2 Organisation du service et gestion des installations | D18: Produire et distribuer des feuillets pour mieux sensibiliser au besoin de vaccination dans les communautés à haut risque | E18: Unité | F18: 1400 | G18: 12 | H18: 16800 | L18: 4 | M18: 21700840 | N18: 5432 | R18: 8 | S18: 40429008 | T18: 10072 | U18: 62129848 | V18: 15504
A19: 1. Obectif1 : Accroître la couverture vaccinale dans les communautés à haut risque | B19: 1 Prestation de services | C19: 1.3 Améliorer la qualité des soins | D19: Soutenir les visites de supervision trimestrielles aux communautés à haut risque | E19: Visite de terrain | F19: 74586 | G19: 4 | H19: 298344 | L19: 1 | M19: 386975675 | N19: 96865 | R19: 3 | S19: 890425620 | T19: 221830 | U19: 1277401295 | V19: 318695
A20: 1. Objectif 1 : Accroître la couverture vaccinale dans les communautés à haut risque | B20: 1 Prestation de services | C20: 1.2 Organisation du service et gestion des installations | D20: Organiser des ateliers trimestriels pour examiner la couverture vaccinale dans les communautés à haut risque | E20: Atelier | F20: 20000 | G20: 4 | H20: 80000 | L20: 1 | M20: 103338665 | N20: 25867 | R20: 3 | S20: 218895462 | T20: 54533 | U20: 322234127 | V20: 80400
A21: 2. Objectif 2 : Renforcer le système de la chaîne du froid grâce à des équipements et une gestion améliorés | B21: 3 Achats et gestion de la chaîne d'approvisionnement | C21: 3.2 Construire ou réhabiliter les installations de la chaîne du froid | D21: Remplacer une chambre froide existante et en construire 2 nouvelles au CMS | E21: Unité | F21: 62000 | G21: 2 | H21: 124000 | L21: 1 | M21: 160171535 | N21: 40093 | R21: 1 | S21: 347720778 | T21: 86627 | U21: 507892313 | V21: 126720
A22: 2. Objectif 2 : Renforcer le système de la chaîne du froid grâce à des équipements et une gestion améliorés | B22: 3 Achats et gestion de la chaîne d'approvisionnement | C22: 3.4 Acheter d'autres équipements et des consommables | D22: Acheter des pièces de rechange et financer l'entretien de toutes les chambres froides dans le CMS. | E22: Unité | F22: 50000 | G22: 1 | H22: 50000 | L22: 0 | M22: 64587165 | N22: 16167 | R22: 1 | S22: 141826662 | T22: 35333 | U22: 206413827 | V22: 51500
A23: 2. Objectif 2 : Renforcer le système de la chaîne du froid grâce à des équipements et une gestion améliorés | B23: 3 Achats et gestion de la chaîne d'approvisionnement | C23: 3.3 Acheter de l'équipement de la chaîne du froid | D23: Acheter des réfrigérateurs à utiliser dans les centres de santé | E23: Unité | F23: 1060 | G23: 498 | H23: 527880 | L23: 166 | M23: 681870595 | N23: 160681 | R23: 332 | S23: 1517432490 | T23: 358035 | U23: 2199303085 | V23: 518716
A24: 2. Objectif 2 : Renforcer le système de la chaîne du froid grâce à des équipements et une gestion améliorés | B24: 3 Achats et gestion de la chaîne d'approvisionnement | C24: 3.3 Achat d'équipements de la chaîne du froid | D24: Acheter des stabilisateurs de courant pour les réfrigérateurs qui utilisent l'électricité | E24: Unité | F24: 1 | H24: 0 | L24: 0 | M24: 0 | N24: 0 | R24: 0 | S24: 0 | T24: 0 | U24: 0 | V24: 0
A25: 2. Objectif 2 : Renforcer le système de la chaîne du froid grâce à des équipements et une gestion améliorés | B25: 3 Achats et gestion de la chaîne d'approvisionnement | C25: 3.3 Achat d'équipements de la chaîne du froid | D25: Acheter des réfrigérateurs à utiliser dans les centres de santé | E25: Unité | F25: 100 | G25: 810 | H25: 81000 | L25: 270 | M25: 104629050 | N25: 26190 | R25: 540 | S25: 229962060 | T25: 57290 | U25: 334591110 | V25: 83480
A26: 2. Objectif 2 : Renforcer le système de la chaîne du froid grâce à des équipements et une gestion améliorés | B26: 3 Achats et gestion de la chaîne d'approvisionnement | C26: 3.3 Acheter de l'équipement de la chaîne du froid | D26: Acheter des porte-vaccins à utiliser dans les centres de santé | E26: Unité | F26: 20 | G26: 2200 | H26: 44000 | L26: 733 | M26: 56836865 | N26: 14227 | R26: 1467 | S26: 140863302 | T26: 35093 | U26: 197700167 | V26: 49320
A27: 2. Objectif 2 : Renforcer le système de la chaîne du froid grâce à des équipements et une gestion améliorés | B27: 3 Achats et gestion de la chaîne d'approvisionnement | C27: 3.3 Acheter de l'équipement de la chaîne du froid | D27: Acheter des dispositifs de contrôle de la température (fridge tags) pour les réfrigérateurs | E27: Unité | F27: 20000 | G27: 1 | H27: 20000 | L27: 0 | M27: 25835665 | N27: 6467 | R27: 1 | S27: 56729862 | T27: 14133 | U27: 82565527 | V27: 20600
A28: 2. Objectif 2 : Renforcer le système de la chaîne du froid grâce à des équipements et une gestion améliorés | B28: 3 Achats et gestion de la chaîne d'approvisionnement | C28: 3.4 Acheter d'autres équipements et des consommables | D28: Acheter des pièces de rechange et payer l'entretien des réfrigérateurs | E28: Unité | F28: 65000 | G28: 1 | H28: 65000 | L28: 0 | M28: 83962915 | N28: 21017 | R28: 1 | S28: 196417062 | T28: 48933 | U28: 280379977 | V28: 69950
A29: 2. Objectif 2 : Renforcer le système de la chaîne du froid grâce à des équipements et une gestion améliorés | B29: 3 Achats et gestion de la chaîne d'approvisionnement | C29: 3.5 Améliorer le système de gestion des achats et des stocks | D29: Imprimer et distribuer des procédures opérationnelles normalisées pour la gestion de la chaîne du froid | E29: Unité | F29: 10000 | G29: 1 | H29: 10000 | L29: 0 | M29: 12915835 | N29: 3233 | R29: 1 | S29: 28366938 | T29: 7067 | U29: 41282773 | V29: 10300
A30: 2. Objectif 2 : Renforcer le système de la chaîne du froid grâce à des équipements et une gestion améliorés | B30: 3 Achats et gestion de la chaîne d'approvisionnement | C30: 3.5 Améliorer le système de gestion des achats et des stocks | D30: Mener des évaluations de la GEV en 2015 et 2018 | E30: Visite de terrain | F30: 40000 | G30: 1 | H30: 40000 | L30: 0 | M30: 51667335 | N30: 12933 | R30: 1 | S30: 115872138 | T30: 28867 | U30: 167539473 | V30: 41800
A31: 2. Objectif 2 : Renforcer le système de la chaîne du froid grâce à des équipements et une gestion améliorés | B31: 3 Achats et gestion de la chaîne d'approvisionnement | C31: 3.5 Améliorer le système de gestion des achats et des stocks | D31: Mener des évaluations annuelles de la chaîne de froid | E31: Visite de terrain | F31: 15000 | G31: 1 | H31: 15000 | L31: 0 | M31: 19375750 | N31: 4850 | R31: 1 | S31: 42548400 | T31: 10600 | U31: 61924150 | V31: 15450
A32: 2. Objectif 2 : Renforcer le système de la chaîne du froid grâce à des équipements et une gestion améliorés | B32: 3 Achats et gestion de la chaîne d'approvisionnement | C32: 3.5 Améliorer le système de gestion des achats et des stocks | D32: Mener des réunions annuelles de gestion de la chaîne de froid | E32: Rencontre | F32: 3000 | G32: 1 | H32: 3000 | L32: 0 | M32: 3875150 | N32: 970 | R32: 1 | S32: 12523680 | T32: 3120 | U32: 16398830 | V32: 4090
A33: 3. Objectif 3 : Améliorer la prise de conscience et la demande de vaccination de la communauté | B33: 5 Acteurs communautaires et autres acteurs locaux | C33: 5.1 Soutenir les activités de création de la demande | D33: Produire des spots d'information de masse pour la TV et la radio | E33: Consultance | F33: 15000 | G33: 1 | H33: 15000 | L33: 0 | M33: 19375750 | N33: 4850 | R33: 1 | S33: 50576400 | T33: 12600 | U33: 69952150 | V33: 17450
A34: 3. Objectif 3 : Améliorer la prise de conscience et la demande de vaccination de la communauté | B34: 5 Acteurs communautaires et autres acteurs locaux | C34: 5.1 Soutenir les activités de création de la demande | D34: Mener des évaluations externes de l'efficacité de la stratégie de communication existante | E34: Consultance | F34: 106000 | G34: 1 | H34: 106000 | L34: 0 | M34: 136920635 | N34: 34273 | R34: 1 | S34: 300676698 | T34: 54907 | U34: 437597333 | V34: 89180
A35: 3. Objectif 3 : Améliorer la prise de conscience et la demande de vaccination de la communauté | B35: 5 Acteurs communautaires et autres acteurs locaux | C35: 5.1 Soutenir les activités de création de la demande | D35: Mener des études pilotes pour envoyer des messages de texte sur les horaires de vaccination aux mères, via les téléphones portables | E35: Consultance | F35: 50000 | G35: 1 | H35: 50000 | L35: 0 | M35: 64587165 | N35: 16167 | R35: 1 | S35: 141826662 | T35: 35333 | U35: 206413827 | V35: 51500
A36: 3. Objectif 3 : Améliorer la prise de conscience et la demande de vaccination de la communauté | B36: 5 Acteurs communautaires et autres acteurs locaux | C36: 5.1 Soutenir les activités de création de la demande | D36: Actualiser et diffuser du matériel d’information, d’éducation et de communication | E36: Unité | F36: 5000 | G36: 33 | H36: 165000 | L36: 11 | M36: 205143250 | N36: 51350 | R36: 22 | S36: 508172400 | T36: 106600 | U36: 713315650 | V36: 157950
A37: 3. Objectif 3 : Améliorer la prise de conscience et la demande de vaccination de la communauté | B37: 5 Acteurs communautaires et autres acteurs locaux | C37: 5.1 Soutenir les activités de création de la demande | D37: Mener des ateliers de formation annuels au niveau opérationnel pour des employés de chaque centre de santé sur la promotion de la sensibilisation à la vaccination | E37: Cours de formation | F37: 30000 | G37: 1 | H37: 30000 | L37: 0 | M37: 38975220 | N37: 9756 | R37: 1 | S37: 85096800 | T37: 21200 | U37: 124072020 | V37: 30956
A38: 3. Objectif 3 : Améliorer la prise de conscience et la demande de vaccination de la communauté | B38: 5 Acteurs communautaires et autres acteurs locaux | C38: 5.2 Améliorer l'environnement favorable et le plaidoyer | D38: Soutenir la formation en médias/relations publiques de deux employés du PNV afin de gérer les réponses à des évènements inhabituels, p.ex. de nouvelles épidémies, des MAPI, des rumeurs sur les vaccins | E38: Cours de formation | F38: 5000 | H38: 0 | L38: 0 | M38: 0 | N38: 0 | R38: 0 | S38: 0 | T38: 0 | U38: 0 | V38: 0
A39: 3. Objectif 3 : Améliorer la prise de conscience et la demande de vaccination de la communauté | B39: 5 Acteurs communautaires et autres acteurs locaux | C39: 5.1 Soutenir les activités de création de la demande | D39: Planifier et soutenir la Semaine de la vaccination annuelle | E39: Unité | F39: 10000 | G39: 1 | H39: 10000 | L39: 0 | M39: 13986495 | N39: 3501 | R39: 1 | S39: 28366938 | T39: 7067 | U39: 42353433 | V39: 10568
A40: 3. Objectif 3 : Améliorer la prise de conscience et la demande de vaccination de la communauté | B40: 5 Acteurs communautaires et autres acteurs locaux | C40: 5.1 Soutenir les activités de création de la demande | D40: Concevoir, produire et distribuer des boîtes à images sur la vaccination pour les centres de santé et les hôpitaux régionaux | E40: Unit | F40: 14220 | G40: 1 | H40: 14220 | L40: 0 | M40: 18380995 | N40: 4601 | R40: 1 | S40: 44350686 | T40: 11049 | U40: 62731681 | V40: 15650
A41: 4. Objectif 4 : Renforcer la surveillance des maladies à prévention vaccinale | B41: 4 Systèmes d'information sanitaire | C41: Renforcer la surveillance des maladies à prévention vaccinale | D41: Mener 3 formations régionales pour les médecins et le personnel opérationnel sur les méthodes de surveillance | E41: Cours de formation | F41: 40000 | G41: 1 | H41: 40000 | L41: 0 | M41: 51667335 | N41: 12933 | R41: 1 | S41: 113463738 | T41: 28267 | U41: 165131073 | V41: 41200
A42: 4. Objectif 4 : Renforcer la surveillance des maladies à prévention vaccinale | B42: 4 Systèmes d'information sanitaire | C42: Renforcer la surveillance des maladies à prévention vaccinale | D42: Mener 3 formations au niveau opérationnel pour le personnel des centres de santé sur les méthodes de surveillance | E42: Cours de formation | F42: 410000 | G42: 1 | H42: 410000 | L42: 0 | M42: 553575165 | N42: 138567 | R42: 1 | S42: 1162988262 | T42: 289733 | U42: 1716563427 | V42: 428300
A43: 4. Objectif 4 : Renforcer la surveillance des maladies à prévention vaccinale | B43: 4 Systèmes d'information sanitaire | C43: Renforcer la surveillance des maladies à prévention vaccinale | D43: Imprimer et distribuer des affiches pour promouvoir la sensibilisation aux symptômes des maladies à prévention vaccinale et améliorer le reporting des cas suspects | E43: Unité | F43: 20000 | G43: 1 | H43: 20000 | L43: 0 | M43: 21840665 | N43: 5467 | R43: 1 | S43: 64757862 | T43: 16133 | U43: 86598527 | V43: 21600
A44: 4. Objectif 4 : Renforcer la surveillance des maladies à prévention vaccinale | B44: 4 Systèmes d'information sanitaire | C44: Renforcer la surveillance des maladies à prévention vaccinale | D44: Tenir des réunions semestrielles pour le personnel de surveillance de base du niveau des médecins | E44: Rencontre | F44: 10000 | G44: 2 | H44: 20000 | L44: 1 | M44: 9855665 | N44: 2467 | R44: 1 | S44: 56729862 | T44: 14133 | U44: 66585527 | V44: 16600
A45: 4. Objectif 4 : Renforcer la surveillance des maladies à prévention vaccinale | B45: 4 Systèmes d'information sanitaire | C45: Renforcer la surveillance des maladies à prévention vaccinale | D45: Tenir des réunions semestrielles pour le personnel de surveillance de base du niveau opérationnel et des centres de santé | E45: Rencontre | F45: 34063 | G45: 2 | H45: 68126 | L45: 1 | M45: 84002865 | N45: 21027 | R45: 1 | S45: 177185988 | T45: 44142 | U45: 261188853 | V45: 65169
A46: 4. Objectif 4 : Renforcer la surveillance des maladies à prévention vaccinale | B46: 4 Systèmes d'information sanitaire | C46: Renforcer la surveillance des maladies à prévention vaccinale | D46: Etablir des cartes de surveillance à utiliser aux niveaux opérationnel et des médecins | E46: Consultance | F46: 23400 | G46: 1 | H46: 23400 | L46: 0 | M46: 30226170 | N46: 7566 | R46: 1 | S46: 42291504 | T46: 10536 | U46: 72517674 | V46: 18102
A47: 5. Objectif 5 : Renforcer les compétences de gestion pour soutenir le PEV | B47: 1 Prestation de services | C47: 1.2 Organisation du service et gestion des installations | D47: Tenir des réunions de gestion du PEV annuelles au niveau des médecins | E47: Rencontre | F47: 15000 | G47: 1 | H47: 15000 | L47: 0 | M47: 19375750 | N47: 4850 | R47: 1 | S47: 42548400 | T47: 10600 | U47: 61924150 | V47: 15450
A48: 5. Objectif 5 : Renforcer les compétences de gestion pour soutenir le PEV | B48: 1 Prestation de services | C48: 1.2 Organisation du service et gestion des installations | D48: Tenir un atelier annuel de revue de la gestion | E48: Atelier | F48: 20000 | G48: 1 | H48: 20000 | L48: 0 | M48: 25835665 | N48: 6467 | R48: 1 | S48: 64757862 | T48: 16133 | U48: 90593527 | V48: 22600
A49: 5. Objectif 5 : Renforcer les compétences de gestion pour soutenir le PEV | B49: 2 Personnel et ressources humaines | C49: 2.2 Formation en emploi (professionnels de la santé) | D49: Mener des formations annuelles en pratique du PEV au niveau régional | E49: Cours de formation | F49: 46000 | G49: 1 | H49: 46000 | L49: 0 | M49: 59817135 | N49: 8973 | R49: 1 | S49: 126469098 | T49: 21507 | U49: 186286233 | V49: =K49+N49+Q49+T49 -> 30480
A50: 5. Objectif 5 : Renforcer les compétences de gestion pour soutenir le PEV | B50: 6 Environnements juridiques, politiques et régulateurs | C50: 6.2 Élaborer et mettre en œuvre des législations, politiques et réglementations | D50: Soutenir des atelier d'actualisation du plan stratégique national der vaccination à 5 ans (PPAC) | E50: Atelier | F50: 10000 | G50: 2 | H50: 20000 | L50: 1 | M50: 29830665 | N50: 7467 | R50: 1 | S50: 48701862 | T50: 12133 | U50: 78532527 | V50: 19600
A51: 5. Objectif 5 : Renforcer les compétences de gestion pour soutenir le PEV | B51: 6 Environnements juridiques, politiques et régulateurs | C51: 6.2 Élaborer et mettre en œuvre des législations, politiques et réglementations | D51: Imprimer et distribuer de nouveaux documents d'orientation | E51: Unité | F51: 7500 | H51: 0 | L51: 0 | M51: 0 | N51: 0 | R51: 0 | S51: 0 | T51: 0 | U51: 0 | V51: 0
A52: 5. Objectif 5 : Renforcer les compétences de gestion pour soutenir le PEV | B52: 1 Prestation de services | C52: 1.2 Organisation du service et gestion des installations | D52: Mener des visites de supervision trimestrielles pour évaluer la gestion du programme de vaccination | E52: Visite de terrain | F52: 101002 | G52: 3 | H52: 303006 | L52: 1 | M52: 387802640 | N52: 97072 | R52: 2 | S52: 835409736 | T52: 208124 | U52: 1223212376 | V52: 305196
A53: 5. Objectif 5 : Renforcer les compétences de gestion pour soutenir le PEV | B53: 1 Prestation de services | C53: 1.2 Organisation du service et gestion des installations | D53: Mener une revue du PEV | E53: Visite de terrain | F53: 20000 | G53: 1 | H53: 20000 | L53: 0 | M53: 25835665 | N53: 6467 | R53: 1 | S53: 56729862 | T53: 14133 | U53: 82565527 | V53: 20600
A54: 5. Objectif 5 : Renforcer les compétences de gestion pour soutenir le PEV | B54: 4 Systèmes d'information sanitaire | C54: 4.1 HMIS et S&E de routine | D54: Mener un examen annuel de la couverture du PEV | E54: Visite de terrain | F54: 25000 | G54: 1 | H54: 25000 | L54: 0 | M54: 32291585 | N54: 8083 | R54: 1 | S54: 70915338 | T54: 17667 | U54: 103206923 | V54: 25750
A55: 5. Objectif 5 : Renforcer les compétences de gestion pour soutenir le PEV | B55: 2 Personnel et ressources humaines | C55: 2.2 Formation en emploi (professionnels de la santé) | D55: Mener des formations annuelles en gestion de niveau intermédiaire | E55: Cours de formation | F55: 10000 | G55: 1 | H55: 10000 | L55: 0 | M55: 12915835 | N55: 3233 | R55: 1 | S55: 28366938 | T55: 2067 | U55: 41282773 | V55: 5300
A56: 5. Objectif 5 : Renforcer les compétences de gestion pour soutenir le PEV | B56: 2 Personnel et ressources humaines | C56: 2.2 Formation en emploi (professionnels de la santé) | D56: Soutenir des visites d'étude dans la région ASEAN | E56: Visite de terrain | F56: 15000 | G56: 0 | H56: 0 | L56: 0 | M56: 0 | N56: 0 | R56: 0 | S56: 0 | T56: 0 | U56: 0 | V56: 0
A57: 5. Objectif 5 : Renforcer les compétences de gestion pour soutenir le PEV | B57: 8 Gestion des programmes | C57: 8.1 Toute activité ne figurant pas dans d'autres catégories | D57: Acquérir de l'équipement pour la gestion du programme | E57: Unité | F57: 20000 | G57: 5 | H57: 100000 | L57: 2 | M57: 145150335 | N57: 36333 | R57: 3 | S57: 283657338 | T57: 70667 | U57: =J57+M57+P57+S57 -> 428807673 | V57: 107000
A58: 5. Objectif 5 : Renforcer les compétences de gestion pour soutenir le PEV | B58: 4 Systèmes d'information sanitaire | C58: 4.6 Renforcer et améliorer la qualité des données | D58: Mener des évaluations annuelles de la qualité des données | E58: Visite de terrain | F58: 41000 | G58: 1 | H58: 41000 | L58: 0 | M58: 44971715 | N58: 11257 | R58: 1 | S58: 116297622 | T58: 28973 | U58: 161269337 | V58: 40230
A59: 5. Objectif 5 : Renforcer les compétences de gestion pour soutenir le PEV | B59: 4 Systèmes d'information sanitaire | C59: 4.6 Renforcer et améliorer la qualité des données | D59: Mener des évaluations externes de la récolte de données et du système de reporting | E59: Consultance | F59: 20000 | H59: 0 | L59: 0 | M59: 0 | N59: 0 | R59: 0 | S59: 0 | T59: 0 | U59: 0 | V59: 0
A60: 5. Objectif 5 : Renforcer les compétences de gestion pour soutenir le PEV | B60: 7 Financement de la santé | C60: 7.3 améliorer la gestion des finances publiques | D60: Mener des audits internes semestriels de la gestion financière des fonds de RSS de Gavi | E60: Visite de terrain | F60: 10000 | G60: 2 | H60: 20000 | L60: 1 | M60: 25036665 | N60: 6267 | R60: 1 | S60: 56729862 | T60: 14133 | U60: 81766527 | V60: 20400
A61: 5. Objectif 5 : Renforcer les compétences de gestion pour soutenir le PEV | B61: 4 Systèmes d'information sanitaire | C61: 4.2 Supervision formative et formation en gestion des données | D61: Soutenir des visites trimestrielles de supervision par du personnel | E61: Visite de terrain DPHI afin de suivre l'enregistrement et le reporting des données | F61: 50000 | G61: 1 | H61: 50000 | L61: 0 | M61: 67783165 | N61: 16967 | R61: 1 | S61: 141826662 | T61: 35333 | U61: 209609827 | V61: 52300
A62: 5. Objectif 5 : Renforcer les compétences de gestion pour soutenir le PEV | B62: 2 Personnel et ressources humaines | C62: 2.9 Renforcer les systèmes d’encouragement/motivation basés sur la performance | D62: Soutenir le versement d'encouragements au personnel du programme de vaccination | E62: Unit | F62: 334440 | G62: 1 | H62: 334440 | L62: 0 | M62: 471953320 | N62: 118136 | R62: 1 | S62: 948660732 | T62: 236338 | U62: 1420614052 | V62: 354474
A63: 6. Gestion des programmes | B63: 9 Autres | C63: 9.2 Soutien technique pour la mise en œuvre de la subvention | D63: Soutien comptable à la gestion de la subvention | E63: Homme-mois | F63: 500 | G63: 12 | H63: 6000 | L63: 4 | M63: 7750300 | N63: 1940 | R63: 8 | S63: 19427760 | T63: 4840 | U63: 27178060 | V63: 6780
A64: 6. Gestion des programmes | B64: 9 Autres | C64: 9.2 Soutien technique pour la mise en œuvre de la subvention | D64: Soutien comptable à la gestion de la subvention | E64: Homme-mois | F64: 800 | G64: 12 | H64: 9600 | L64: 4 | M64: 12799980 | N64: 3204 | R64: 8 | S64: 31646376 | T64: 7884 | U64: 44446356 | V64: 11088
B65: Prière de choisir... | U65: =J65+M65+P65+S65 -> 0 | V65: 0
B66: Prière de choisir... | U66: 0 | V66: 0
B67: Prière de choisir... | U67: 0 | V67: 0
B68: Prière de choisir... | U68: 0 | V68: 0
B69: Prière de choisir... | U69: 0 | V69: 0
B70: Prière de choisir... | U70: 0 | V70: 0
B71: Prière de choisir... | U71: 0 | V71: 0
B72: Prière de choisir... | U72: 0 | V72: 0
B73: Prière de choisir... | U73: 0 | V73: 0
B74: Prière de choisir... | U74: 0 | V74: 0
B75: Prière de choisir... | U75: 0 | V75: 0
B76: Prière de choisir... | U76: 0 | V76: 0
B77: Prière de choisir... | U77: 0 | V77: 0
B78: Prière de choisir... | U78: 0 | V78: 0
B79: Prière de choisir... | U79: 0 | V79: 0
B80: Prière de choisir... | U80: 0 | V80: 0
B81: Prière de choisir... | U81: 0 | V81: 0
B82: Prière de choisir... | U82: 0 | V82: 0
B83: Prière de choisir... | U83: 0 | V83: 0
B84: Prière de choisir... | U84: 0 | V84: 0
B85: Prière de choisir... | U85: 0 | V85: 0
B86: Prière de choisir... | U86: 0 | V86: 0
B87: Prière de choisir... | U87: 0 | V87: 0
B88: Prière de choisir... | U88: 0 | V88: 0
B89: Prière de choisir... | U89: 0 | V89: 0

Sheet Registre des actifs
A1: =CONCATENATE("Asset Register - ",Instructions!E12) -> Asset Register - paysexemple - RSS 2
A3: Description de l'actif | B3: Coûts unitaires USD | C3: Unités | D3: Date d'achat | E3: Emplacement | F3: Numéro de série | G3: Etat | H3: Autres commentaires
A4: Véhicules
A5: Toyota 2015 RAV4 | B5: 23680 | C5: 1 | D5: 2015-03-02 | E5: Province A | F5: ABC123456789 | G5: Neuf | H5: Rayures minimes sur les portes
A6: IVECO TRAKKER AVEC BOITE DE CHARGEMENT REFRIGEREE | B6: 126842.03 | C6: 1 | D6: 2015-03-12 | E6: Province B | F6: DEF123456789 | G6: Usagé, une année | H6: Petite bosse sur la porte passager Pas de problèmes opérationnels
A7: IVECO EUROCARGO AVEC BOITE DE CHARGEMENT REFRIGEREE | B7: 78649.7 | C7: 2 | D7: 2015-03-12 | E7: Capitale | F7: ABC123, ABC456 | G7: Neuf
A12: Chaîne de Froid
A13: Réfrigérateur <30 litres | B13: 8 | C13: 2750 | D13: 2015-01-15 | E13: Province A - F | F13: S0001 - S0008 | G13: Neuf
A14: Réfrigérateur 30-60 litres | B14: 6 | C14: 3585 | D14: 2015-01-15 | E14: Province A, D et E | F14: REF001-REF006 | G14: Neuf
A15: Réfrigérateur/congélateur 90-120 litres | B15: 3 | C15: 8719 | D15: 2015-01-30 | E15: Province B et C | F15: FRZ001-FRZ003 | G15: Neuf
A16: Porte-vaccins VCAF | B16: 40 | C16: 133 | D16: 2015-02-02 | E16: Province A - F | F16: VCA001-VCA040 | G16: Neuf
A20: Ordinateurs et équipement informatique
A21: Dell Inspiron 15 5000 | B21: 559 | C21: 4 | D21: 2015-02-01 | E21: Capitale | F21: ABC001-ABC004 | G21: Neuf
A28: Autre équipement
A29: Kit d'électricité solaire - Nipsa Small family/shop - 12 VDC-60W-240 Whr/jour | B29: 568.9 | C29: 12 | D29: 2015-04-14 | E29: Province A - F | F29: XYZ001-XYZ012 | G29: Neuf | H29: Adaptateurs supplémentaires nécessaires à 25 USD
A30: Kit d'électricité solaire - Nipsa Small family/shop (12 VDC60W240 Whr/jour) | B30: 358.08 | C30: 9 | D30: 2015-04-14 | E30: Province B et C | F30: XYZ901-XYZ909 | G30: Neuf
A36: Autres

Sheet Catégories de subventions Gavi
A1: Catégorie | B1: Sous-catégorie
A2: 1 Prestation de services | B2: 1,1. Investissements dans les infrastructures, y compris rénovations
B3: 1.2 Achat de véhicules
B4: 1.3 Achat d'équipement et de matériel médical pour la prestation de services
B5: 1.4 Amélioration de l'organisation et gestion de la prestation de services et qualité des soins
B6: 1.3 Frais de fonctionnement (frais récurrents) de la prestation de services de vaccination, y compris l'entretien
B7: 1.6 Amélioration du système de gestion des déchets
B8: 1.7 Autres activités de prestation de services
A9: 2 Personnel et ressources humaines | B9: 2.1 Gestion des travailleurs sanitaires et communautaires
B10: 2.2 Formation avant l'emploi et renforcement des capacités (professionnels de santé)
B11: 2.3 Formation en cours d'emploi et renforcement des capacités des professionnels de santé (général)
B12: 2.4 Formation et renforcement des capacités des travailleurs de santé bénévoles et communautaires (général)
B13: 2.5 Formation et renforcement des capacité sur la chaîne d'approvisionnement
B14: 2.6 Formation et renforcement des capacité en reporting des données de routine
B15: 2.7 Formation et renforcement des capacité en analyse et recherche des données, y compris l'utilisation stratégique des données et des informations pour la gestion du programme
B16: 2.8 Autres activités du personnel sanitaire et communautaire
A17: 3 Achats et gestion de la chaîne d'approvisionnement | B17: 3.1. Amélioration du système de gestion de la chaîne d’approvisionnement
B18: 3.2 Mise à niveau ou modernisation de l'infrastructure de gestion des achats et des approvisionnements, y compris les installations de la chaîne du froid
B19: 3.3 Achat d'équipement de la chaîne du froid
B20: 3.4 Achat de véhicules pour la chaîne d'approvisionnement
B21: 3.53 Frais de fonctionnement (frais récurrents) de la chaîne d'approvisionnement, y compris l'entretien
B22: 3.6 Autres activités de la chaîne d'achat et d'approvisionnement
A23: 4 Systèmes d'information sanitaire | B23: 4.1. Renforcement du système d'information sanitaire de routine
B24: 4.2 Renforcement les systèmes d’information sur la gestion logistique ou d'autres systèmes de données et/ou des outils de données relatifs à la chaîne d'approvisionnement
B25: 4.3 Etudes, recherche opérationnelle et enquêtes
B26: 4.4 Renforcement des systèmes de surveillance des maladies évitables par la vaccination et des manifestations adverses post immunisation (MAPI)
B27: 4.5 Technologie de l'information et de la communication (TIC)
B28: 4.6 Autres activités relatives à l'amélioration de la disponibilité, qualité et utilisation des données sur la vaccination et les systèmes de santé
A29: 5 Acteurs communautaires et autres acteurs locaux | B29: 5.1 Activités de création de la demande
B30: 5.2 Renforcement de la capacité des organisations de la société civile (OSC), des groupes communautaires et des réseaux
B31: 5.3 Autres activités relatives des acteurs communautaires et autres acteurs locaux
A32: 6 Environnements juridiques, politiques et régulateurs | B32: 6.1. Renforcement du système de gouvernance et des programmes de coordination de la vaccination
B33: 6.2. Soutien à la stratégie sanitaire et à l'élaboration de politiques
B34: 6.3 Autres activités relatives aux politiques et à la gouvernance
A35: 7 Financement de la santé | B35: 7.1. Amélioration de la viabilité financière
B36: 7.2 Assurance et autres systèmes de partage des risques
B37: 7.3. Amélioration de la gestion des finances publiques du système de santé
B38: 7.4 Autres activités destinées à garantir un financement approprié du système communautaire et de santé
A39: 8 Gestion des programmes | B39: 8.1. Couverture des frais de gestion associés à la subvention de RSS de Gavi (y compris les audits financiers)
B40: 8.2 Prestation d'assistance et d'appui techniques généraux à la mise en œuvre de la subvention de RSS de Gavi
B41: 8.3 Autres activités relatives à la gestion du programme
A42: 9 Autres | B42: 9.1 Toute activité ne figurant pas dans d'autres catégories
A43: 10 Frais de soutien au programme | B43: 10.1 Frais de soutien au programme versés à des partenaires de l'Alliance

Sheet Listes (hidden)
A1: Catégories de subventions Gavi | C1: Fréquence de reporting
A2: Prière de choisir... | C2: Prière de choisir...
A3: 1 Prestation de services | C3: Trimestrielle
A4: 2 Personnel et ressources humaines | C4: Semestrielle
A5: 3 Achats et gestion de la chaîne d'approvisionnement | C5: Annuelle
A6: 4 Systèmes d'information sanitaire
A7: 5 Acteurs communautaires et autres acteurs locaux
A8: 6 Environnements juridiques, politiques et régulateurs
A9: 7 Financement de la santé
A10: 8 Gestion du programmes
A11: ='Etat des revenus et dépenses'!A20 -> 9 Autres
A12: ='[1]Relevé des recettes et dépens10'!A21 -> 
